bitfinex/quotes_SOLUSD_20250517
["timestamp","ask_amount","ask_price","bid_price","bid_amount"]
[1747458913069,31.93366166,168.53,168.45,100.74964886]
[1747458913849,5.93366166,168.53,168.45,261.44964886]
[1747458914242,5.93295757,168.55,168.46,5.93612727]
[1747458914464,5.93295757,168.55,168.47,18.64964886]
[1747458915783,20.76535151,168.55,168.46,18.64964886]
[1747458917076,26.0,168.52,168.46,18.64964886]
[1747458917462,5.93436591,168.51,168.46,18.64964886]
[1747458918062,26.0,168.52,168.46,18.64964886]
[1747458918266,26.0,168.52,168.46,24.58573769]
[1747458918575,31.93413107,168.52,168.46,18.64964886]
[1747458918880,26.0,168.52,168.46,24.58563925]
[1747458919096,31.93372864,168.53,168.46,24.58563925]
[1747458919270,31.93372864,168.53,168.46,241.38563925]
[1747458923898,31.93372864,168.53,168.47,19.16]
[1747458924588,26.0,168.5,168.41,101.26]
[1747458924893,26.0,168.5,168.42,19.2]
[1747458925503,26.0,168.46,168.42,19.2]
[1747458927402,5.93647966,168.45,168.42,19.2]
[1747458931393,5.93647966,168.45,168.42,101.3]
[1747458935900,5.93647966,168.45,168.42,19.2]
[1747458946459,5.9354226,168.48,168.43,18.64964886]
[1747458949146,20.77332996,168.49,168.43,18.64964886]
[1747458953164,5.93507033,168.49,168.43,18.64964886]
[1747458958966,36.75,168.61,168.43,32.8181015]
[1747458958967,5.93480754,168.5,168.43,32.8181015]
[1747458959868,5.93366166,168.53,168.43,32.8181015]
[1747458960670,20.76781581,168.53,168.43,32.8181015]
[1747458962672,20.76781581,168.53,168.43,26.88094886]
[1747458962876,50.43612412,168.53,168.43,18.64964886]
[1747458963746,27.6633,168.5,168.41,19.16]
[1747458963948,26.0,168.48,168.42,37.56964886]
[1747458964148,26.0,168.48,168.43,18.92]
[1747458964756,20.77521219,168.47,168.43,18.92]
[1747458965075,20.77521219,168.47,168.42,18.92]
[1747458965781,20.77521219,168.47,168.41,19.16]
[1747458966073,20.77521219,168.47,168.42,18.92]
[1747458975191,20.77521219,168.47,168.43,18.9]
[1747458975386,20.77521219,168.47,168.41,19.16]
[1747458975690,27.5235,168.44,168.41,19.16]
[1747458977472,5.93718458,168.43,168.41,19.16]
[1747458982191,26.0,168.4,168.35,18.98]
[1747458982387,26.0,168.4,168.33,23.15643682]
[1747458982705,1.6231,168.39,168.33,23.15643682]
[1747458983590,26.0,168.37,168.33,23.15643682]
[1747458983786,26.0,168.35,168.31,18.98]
[1747458983992,26.0,168.35,168.32,18.92]
[1747458986421,5.94035879,168.34,168.19,232.28]
[1747458986599,5.94035879,168.34,168.26,56.46964886]
[1747458986800,5.94035879,168.34,168.28,18.64964886]
[1747458987215,5.94009766,168.35,168.28,18.64964886]
[1747458987413,26.0,168.37,168.28,18.64964886]
[1747458987706,5.93958516,168.37,168.28,18.64964886]
[1747458987908,26.0,168.4,168.28,18.64964886]
[1747458988115,5.9375371,168.42,168.28,18.64964886]
[1747458988316,26.0,168.41,168.28,18.64964886]
[1747458988518,31.93824228,168.4,168.3,18.64964886]
[1747458989840,31.93824228,168.4,168.32,18.64964886]
[1747458990138,31.93824228,168.4,168.33,37.82]
[1747458991442,31.93824228,168.4,168.34,18.92]
[1747458992116,46.78384798,168.4,168.34,18.92]
[1747458992822,31.93824228,168.4,168.34,18.92]
[1747458997659,1.6483,168.39,168.3,18.9]
[1747458997841,26.0,168.35,168.32,18.92]
[1747458998351,26.0,168.35,168.31,18.92]
[1747458999864,5.94035879,168.34,168.31,18.92]
[1747459000556,20.79125578,168.34,168.3,18.9]
[1747459000860,20.79125578,168.34,168.31,18.92]
[1747459007564,20.79125578,168.34,168.31,17.50321672]
[1747459008462,39.68637544,168.43,168.31,17.50321672]
[1747459008463,5.93894761,168.38,168.32,18.64964886]
[1747459010044,5.93859492,168.39,168.32,24.59045271]
[1747459012943,5.93859492,168.39,168.32,18.64964886]
[1747459013352,20.78508224,168.39,168.32,18.64964886]
[1747459013570,20.78508224,168.39,168.33,18.92]
[1747459015559,26.0,168.39,168.34,18.64964886]
[1747459016973,5.93894761,168.38,168.33,18.92]
[1747459017381,26.0,168.35,168.34,18.92]
[1747459018973,31.94000594,168.35,168.34,18.92]
[1747459019162,31.94000594,168.35,168.32,18.9]
[1747459019571,46.79002079,168.35,168.29,18.92]
[1747459019877,46.79002079,168.35,168.27,259.84964886]
[1747459020077,46.79002079,168.35,168.28,18.92]
[1747459020264,31.94000594,168.35,168.29,18.64964886]
[1747459021957,31.94000594,168.35,168.27,241.2]
[1747459022161,31.94000594,168.35,168.28,18.92]
[1747459023572,46.79002079,168.35,168.28,18.92]
[1747459023771,76.49005049,168.35,168.27,241.2]
[1747459023975,1.616,168.34,168.27,260.12]
[1747459024188,1.616,168.34,168.27,37.82]
[1747459024569,1.616,168.34,168.28,18.92]
[1747459026081,26.0,168.3,168.28,18.92]
[1747459026580,26.0,168.32,168.28,18.92]
[1747459027386,5.94071169,168.33,168.28,18.92]
[1747459030298,5.94071169,168.33,168.28,101.02]
[1747459035698,5.94071169,168.33,168.29,18.92]
[1747459036298,26.0,168.33,168.29,101.02]
[1747459037390,5.94042907,168.34,168.29,101.02]
[1747459038604,5.94042907,168.34,168.3,18.92]
[1747459039479,31.94005672,168.35,168.3,18.92]
[1747459039796,31.94005672,168.35,168.31,18.64964886]
[1747459041201,5.93930035,168.37,168.31,18.64964886]
[1747459041506,31.93930035,168.37,168.31,18.64964886]
[1747459042319,31.93930035,168.37,168.31,100.74964886]
[1747459045193,31.93930035,168.37,168.31,106.69105996]
[1747459045392,26.0,168.37,168.31,106.69105996]
[1747459045609,5.9389735,168.38,168.31,106.69105996]
[1747459045798,5.9389735,168.38,168.31,241.39105996]
[1747459046332,1.5331,168.42,168.31,241.39105996]
[1747459046495,5.9368321,168.44,168.33,18.64964886]
[1747459046689,5.9368321,168.44,168.35,18.64964886]
[1747459047013,5.9368321,168.44,168.37,18.64964886]
[1747459047329,5.93612727,168.46,168.37,235.44964886]
[1747459047624,26.0,168.45,168.37,235.44964886]
[1747459048122,31.93671213,168.45,168.39,18.64964886]
[1747459048295,31.93671213,168.45,168.39,100.74964886]
[1747459051318,46.77791129,168.45,168.39,100.74964886]
[1747459056217,46.77791129,168.45,168.39,18.9]
[1747459056800,46.77791129,168.45,168.38,18.9]
[1747459057006,46.77791129,168.45,168.38,37.8]
[1747459057222,46.77791129,168.45,168.38,18.9]
[1747459057447,76.46030962,168.45,168.38,18.9]
[1747459058626,1.5018,168.44,168.38,18.9]
[1747459058826,26.0,168.4,168.38,18.9]
[1747459059445,26.0,168.39,168.38,18.9]
[1747459059652,26.0,168.38,168.34,323.34]
[1747459060254,26.0,168.38,168.34,304.44]
[1747459060442,26.0,168.38,168.34,82.1]
[1747459060833,26.0,168.35,168.34,82.1]
[1747459063153,5.94000594,168.35,168.34,82.1]
[1747459063426,5.94000594,168.35,168.33,37.8]
[1747459064137,5.93930035,168.37,168.33,37.8]
[1747459064538,20.78755122,168.37,168.33,37.8]
[1747459064933,20.78755122,168.37,168.33,18.9]
[1747459065138,20.78755122,168.37,168.33,37.8]
[1747459067172,20.78755122,168.37,168.33,18.9]
[1747459067351,26.0,168.34,168.27,18.9]
[1747459067548,26.0,168.34,168.27,101.0]
[1747459067767,26.0,168.34,168.27,120.18]
[1747459068269,32.4793,168.34,168.27,120.18]
[1747459068481,26.0,168.3,168.27,120.2]
[1747459068770,26.0,168.3,168.27,38.1]
[1747459069170,31.94071169,168.33,168.28,18.64964886]
[1747459070176,46.79249093,168.33,168.27,38.1]
[1747459072268,46.79249093,168.33,168.27,120.2]
[1747459076381,46.79249093,168.33,168.27,101.0]
[1747459076564,46.79249093,168.33,168.28,19.22]
[1747459078276,46.79249093,168.33,168.28,101.32]
[1747459079589,31.94071169,168.33,168.28,101.32]
[1747459080877,31.94071169,168.33,168.29,18.64964886]
[1747459081289,31.94071169,168.33,168.29,100.74964886]
[1747459081857,26.0,168.33,168.29,100.74964886]
[1747459082057,1.6073,168.38,168.29,241.39166494]
[1747459082058,5.94006618,168.35,168.29,241.39166494]
[1747459082393,5.93968661,168.36,168.29,241.39166494]
[1747459082690,5.93968661,168.36,168.29,235.44964886]
[1747459082990,31.93968661,168.36,168.29,235.44964886]
[1747459086389,46.78881942,168.36,168.29,235.44964886]
[1747459087289,46.78881942,168.36,168.29,100.74964886]
[1747459088297,46.78881942,168.36,168.29,82.1]
[1747459089689,46.78881942,168.36,168.3,19.2]
[1747459090687,26.0,168.33,168.3,19.2]
[1747459090902,26.0,168.33,168.29,101.28]
[1747459091778,5.94106463,168.32,168.29,101.28]
[1747459092286,5.94106463,168.32,168.29,82.1]
[1747459092490,5.94106463,168.32,168.29,101.28]
[1747459092695,5.94106463,168.32,168.29,82.1]
[1747459092992,26.0,168.3,168.29,82.1]
[1747459093294,26.0,168.3,168.27,101.0]
[1747459093501,26.0,168.3,168.27,120.16]
[1747459093802,5.94212371,168.29,168.27,120.16]
[1747459094009,5.94212371,168.29,168.27,18.9]
[1747459100390,26.0,168.26,168.24,82.1]
[1747459100694,26.0,168.26,168.23,241.44]
[1747459100870,26.0,168.26,168.19,82.1]
[1747459101071,26.0,168.26,168.18,82.1]
[1747459101272,26.0,168.26,168.18,101.82]
[1747459101699,20.80237741,168.25,168.18,101.82]
[1747459102212,20.80237741,168.25,168.18,82.1]
[1747459102213,26.0,168.22,168.18,82.1]
[1747459102509,26.0,168.22,168.16,121.14]
[1747459103494,26.0,168.24,168.17,18.64964886]
[1747459103895,5.944243,168.23,168.17,18.64964886]
[1747459104587,5.944243,168.23,168.17,24.59596775]
[1747459105705,5.94397562,168.24,168.17,24.59596775]
[1747459106823,26.0,168.25,168.17,241.39596775]
[1747459107010,4.59553959,168.3,168.17,256.26187724]
[1747459107195,1.6321,168.3,168.17,256.26187724]
[1747459107396,26.0,168.28,168.17,256.26187724]
[1747459107612,26.0,168.28,168.17,241.39596775]
[1747459108615,5.9435364,168.25,168.17,235.44964886]
[1747459108802,5.9435364,168.25,168.17,100.74964886]
[1747459109008,5.9435364,168.25,168.17,106.69599104]
[1747459110813,5.9435364,168.25,168.17,100.74964886]
[1747459111218,5.9435364,168.25,168.17,106.69597335]
[1747459111825,5.9435364,168.25,168.17,100.74964886]
[1747459113034,26.0,168.24,168.17,100.74964886]
[1747459113215,26.0,168.24,168.17,82.1]
[1747459113402,26.0,168.24,168.18,20.02]
[1747459114111,26.0,168.24,168.17,82.1]
[1747459114316,26.0,168.24,168.17,102.1]
[1747459114629,26.0,168.22,168.17,20.0]
[1747459114925,26.0,168.22,168.17,20.02]
[1747459115924,26.0,168.24,168.18,18.64964886]
[1747459117024,14.8566592,168.28,168.18,18.64964886]
[1747459117025,26.0,168.25,168.18,18.64964886]
[1747459119139,5.94388968,168.24,168.18,18.64964886]
[1747459120253,5.94388968,168.24,168.18,100.74964886]
[1747459122024,5.87412534,168.24,168.18,100.74964886]
[1747459123946,5.87412534,168.24,168.19,19.9]
[1747459126252,5.87412534,168.24,168.19,102.0]
[1747459131745,5.87412534,168.24,168.19,121.86]
[1747459132058,26.0,168.21,168.19,102.0]
[1747459132359,26.0,168.21,168.19,19.9]
[1747459133160,5.94530321,168.2,168.19,19.9]
[1747459137564,31.94501107,168.21,168.19,19.9]
[1747459137750,5.944243,168.23,168.19,19.9]
[1747459138263,5.944243,168.23,168.19,102.0]
[1747459141059,5.94399288,168.24,168.2,18.64964886]
[1747459141656,5.9435364,168.25,168.2,18.64964886]
[1747459141860,5.9435364,168.25,168.2,100.74964886]
[1747459142645,20.80237741,168.25,168.2,82.1]
[1747459145647,20.80237741,168.25,168.21,19.78]
[1747459147392,20.80237741,168.25,168.21,101.88]
[1747459150287,20.80237741,168.25,168.21,19.78]
[1747459151985,20.80237741,168.25,168.22,19.74]
[1747459153788,5.9435364,168.25,168.22,19.74]
[1747459154989,5.94247682,168.28,168.23,18.64964886]
[1747459155190,5.94247682,168.28,168.23,38.40964886]
[1747459156775,5.94247682,168.28,168.23,120.50964886]
[1747459157080,5.94071169,168.33,168.23,126.45368626]
[1747459157284,26.0,168.3,168.23,126.45368626]
[1747459158093,31.94192587,168.3,168.23,126.45368626]
[1747459159278,26.0,168.32,168.23,126.45368626]
[1747459159594,26.0,168.32,168.23,120.50964886]
[1747459159996,26.0,168.32,168.23,120.43988451]
[1747459161093,26.0,168.32,168.23,126.38408169]
[1747459161298,5.94141762,168.31,168.23,126.38408169]
[1747459162295,20.79496167,168.31,168.23,120.43988451]
[1747459164598,14.85354405,168.31,168.23,82.1]
[1747459164803,26.0,168.28,168.24,19.72]
[1747459164998,26.0,168.28,168.21,38.42964886]
[1747459165195,26.0,168.28,168.24,19.74]
[1747459167602,31.94282997,168.27,168.24,19.74]
[1747459167792,26.0,168.25,168.24,19.74]
[1747459169913,31.9435364,168.25,168.24,19.74]
[1747459170585,31.9435364,168.25,168.21,101.88]
[1747459170779,31.9435364,168.25,168.22,19.7]
[1747459173004,5.94247682,168.28,168.22,19.7]
[1747459173206,31.94247682,168.28,168.22,19.7]
[1747459173587,31.94247682,168.28,168.23,18.64964886]
[1747459177317,31.94247682,168.28,168.23,100.74964886]
[1747459178918,31.94247682,168.28,168.23,82.1]
[1747459179119,46.79866888,168.28,168.23,82.1]
[1747459181504,46.79866888,168.28,168.24,19.66]
[1747459185932,46.79866888,168.28,168.25,19.7]
[1747459186116,31.94247682,168.28,168.25,19.7]
[1747459186515,31.94247682,168.28,168.26,19.6]
[1747459186709,31.94177064,168.3,168.26,19.6]
[1747459189635,5.94177064,168.3,168.26,101.7]
[1747459189806,26.0,168.32,168.27,18.64964886]
[1747459190512,31.9413089,168.32,168.27,18.64964886]
[1747459192427,46.79397049,168.32,168.26,101.7]
[1747459192620,46.79397049,168.32,168.26,19.6]
[1747459192821,48.35917049,168.32,168.25,101.8]
[1747459193138,48.35917049,168.32,168.26,19.56]
[1747459197317,48.35917049,168.32,168.27,19.52]
[1747459203522,78.06449368,168.32,168.25,19.7]
[1747459206943,78.06449368,168.32,168.21,82.1]
[1747459206944,1.6494,168.27,168.21,82.1]
[1747459207126,1.6494,168.27,168.2,19.5]
[1747459207542,26.0,168.23,168.2,19.5]
[1747459209567,5.94459636,168.22,168.2,19.5]
[1747459210264,26.0,168.19,168.15,19.5]
[1747459210838,26.0,168.19,168.15,39.46]
[1747459211237,26.0,168.19,168.15,19.5]
[1747459211552,26.0,168.19,168.15,39.54]
[1747459212254,5.94601022,168.18,168.15,39.54]
[1747459214855,26.0,168.16,168.15,19.5]
[1747459216162,5.94671741,168.16,168.15,19.5]
[1747459224182,5.94641945,168.17,168.15,19.5]
[1747459224785,5.94601022,168.18,168.15,19.5]
[1747459225364,31.94576186,168.19,168.15,19.5]
[1747459225784,5.94459636,168.22,168.15,19.5]
[1747459226161,26.0,168.21,168.16,18.64964886]
[1747459226363,5.94459636,168.22,168.16,18.64964886]
[1747459226975,5.94459636,168.22,168.16,24.59634455]
[1747459227361,5.94459636,168.22,168.16,18.64964886]
[1747459228996,5.94459636,168.22,168.16,24.59626414]
[1747459229287,5.94459636,168.22,168.16,18.64964886]
[1747459231390,5.94459636,168.22,168.16,100.74964886]
[1747459231792,5.94459636,168.22,168.17,20.22]
[1747459232187,20.80608726,168.22,168.17,20.22]
[1747459232993,26.0,168.19,168.16,82.1]
[1747459233194,26.0,168.19,168.16,20.26]
[1747459235802,31.94601022,168.18,168.16,20.26]
[1747459236096,5.94601022,168.18,168.16,20.26]
[1747459236270,26.0,168.17,168.16,20.26]
[1747459237302,31.94636379,168.17,168.16,20.26]
[1747459237896,46.81227328,168.17,168.1,20.26]
[1747459238103,46.81227328,168.17,168.1,40.6]
[1747459238282,46.81227328,168.17,168.1,20.26]
[1747459238490,46.81227328,168.17,168.1,40.76]
[1747459239393,46.81227328,168.17,168.1,40.74]
[1747459239592,46.81227328,168.17,168.1,20.26]
[1747459242280,76.54409227,168.17,168.1,20.26]
[1747459242480,76.54409227,168.17,168.05,102.36]
[1747459242481,26.0,168.12,168.05,102.36]
[1747459242686,26.0,168.12,168.05,20.26]
[1747459242893,26.0,168.12,168.05,40.88]
[1747459243307,1.6245,168.16,168.05,40.88]
[1747459243308,26.0,168.14,168.05,40.88]
[1747459243515,26.0,168.1,168.05,40.88]
[1747459245208,26.0,168.1,168.03,24.14550197]
[1747459245406,26.0,168.1,168.06,40.88]
[1747459245601,5.94919388,168.09,168.06,40.88]
[1747459248915,26.0,168.11,168.06,122.98]
[1747459249105,31.94876865,168.11,168.06,122.98]
[1747459250509,31.94876865,168.11,168.06,40.88]
[1747459251893,46.81998392,168.11,168.06,40.88]
[1747459252094,31.94876865,168.11,168.06,40.88]
[1747459255235,31.94876865,168.11,168.06,122.98]
[1747459255424,31.94876865,168.11,168.07,40.92]
[1747459256729,31.94813637,168.12,168.07,40.92]
[1747459257129,26.0,168.12,168.08,18.64964886]
[1747459257540,21.51362051,168.17,168.08,18.64964886]
[1747459257541,31.94707106,168.15,168.08,100.74964886]
[1747459257845,46.15577629,168.2,168.08,100.74964886]
[1747459258050,5.94565669,168.19,168.09,5.94919388]
[1747459258356,26.0,168.16,168.09,5.94919388]
[1747459258515,26.0,168.16,168.09,88.04919388]
[1747459259015,26.0,168.16,168.1,18.64964886]
[1747459259220,5.94565669,168.19,168.12,18.64964886]
[1747459259453,31.94565669,168.19,168.14,18.64964886]
[1747459259656,31.94565669,168.19,168.14,100.74964886]
[1747459260338,14.86192435,168.22,168.14,100.74964886]
[1747459260834,5.94388968,168.24,168.14,106.69704537]
[1747459261273,26.0,168.21,168.14,106.69704537]
[1747459261473,20.80361388,168.24,168.14,106.69704537]
[1747459261655,26.0,168.21,168.14,106.69704537]
[1747459262358,5.94530321,168.2,168.14,106.69704537]
[1747459263174,5.94500301,168.21,168.14,106.69704537]
[1747459263464,26.0,168.23,168.14,241.39704537]
[1747459264354,46.8048505,168.23,168.14,235.44964886]
[1747459265259,31.944243,168.23,168.14,241.39705369]
[1747459267362,46.8048505,168.23,168.14,235.44964886]
[1747459270287,46.8048505,168.23,168.14,100.74964886]
[1747459271287,26.0,168.2,168.14,100.74964886]
[1747459271464,26.0,168.2,168.15,20.44]
[1747459271988,20.8048505,168.23,168.15,102.54]
[1747459272686,20.8048505,168.23,168.16,18.64964886]
[1747459274174,14.8606075,168.23,168.16,18.64964886]
[1747459276369,14.8606075,168.23,168.16,100.74964886]
[1747459282095,14.8606075,168.23,168.17,20.6]
[1747459282276,14.8606075,168.23,168.17,102.7]
[1747459282686,14.8606075,168.23,168.18,18.64964886]
[1747459282874,14.8606075,168.23,168.18,100.74964886]
[1747459286703,5.94388968,168.24,168.18,100.74964886]
[1747459294905,5.94388968,168.24,168.18,106.69550159]
[1747459296901,5.94388968,168.24,168.18,106.19550159]
[1747459297300,31.94361631,168.25,168.18,106.19550159]
[1747459297700,31.94361631,168.25,168.18,240.89550159]
[1747459297895,26.0,168.25,168.18,240.89550159]
[1747459299309,5.94280656,168.28,168.18,255.76052715]
[1747459302403,26.0,168.27,168.19,40.14]
[1747459302797,26.0,168.27,168.2,18.64964886]
[1747459303115,26.0,168.27,168.2,38.68964886]
[1747459303318,26.0,168.27,168.2,120.78964886]
[1747459303892,5.94318316,168.26,168.2,120.78964886]
[1747459309927,5.94318316,168.26,168.21,20.1]
[1747459312219,5.94318316,168.26,168.21,102.2]
[1747459317536,20.80114108,168.26,168.17,82.1]
[1747459317710,22.43944108,168.26,168.18,39.98]
[1747459317908,26.0,168.23,168.19,19.88]
[1747459318427,31.94459636,168.22,168.18,102.2]
[1747459318933,46.80608726,168.22,168.18,102.2]
[1747459319430,20.80608726,168.22,168.18,20.1]
[1747459322438,1.6383,168.21,168.18,20.1]
[1747459323136,26.0,168.19,168.15,19.86]
[1747459323338,26.0,168.19,168.14,222.52]
[1747459324439,26.0,168.15,168.13,19.88]
[1747459326427,26.0,168.15,168.07,26.73044886]
[1747459326428,20.81598667,168.14,168.07,26.73044886]
[1747459326628,20.81598667,168.14,168.08,19.88]
[1747459326843,20.81598667,168.14,168.09,19.88]
[1747459327336,26.0,168.11,168.08,19.88]
[1747459327566,26.0,168.11,168.08,39.76]
[1747459328734,5.94883997,168.1,168.08,39.76]
[1747459328964,26.0,168.07,168.06,39.76]
[1747459329171,26.0,168.07,168.06,19.88]
[1747459330634,14.86976522,168.13,168.06,101.98]
[1747459330857,26.0,168.1,168.06,101.98]
[1747459331059,26.0,168.1,168.07,18.64964886]
[1747459331359,5.94742476,168.14,168.07,18.64964886]
[1747459331532,26.0,168.13,168.07,100.74964886]
[1747459332130,26.0,168.13,168.07,82.1]
[1747459332557,27.6505,168.13,168.07,82.1]
[1747459332752,26.0,168.09,168.07,82.1]
[1747459332955,26.0,168.09,168.06,39.8]
[1747459333661,26.0,168.09,168.06,19.88]
[1747459333838,26.0,168.09,168.06,39.8]
[1747459334749,5.94954783,168.08,168.06,39.8]
[1747459341756,26.0,168.11,168.06,39.8]
[1747459342056,26.0,168.11,168.06,121.9]
[1747459342862,5.94883997,168.1,168.06,121.9]
[1747459343644,31.94860302,168.11,168.07,18.64964886]
[1747459344348,31.94860302,168.11,168.06,121.9]
[1747459346258,31.94860302,168.11,168.06,101.98]
[1747459346575,31.94860302,168.11,168.07,19.92]
[1747459347261,46.81981829,168.11,168.07,19.92]
[1747459347465,46.81981829,168.11,168.08,19.9]
[1747459348661,33.52030302,168.11,168.03,304.62]
[1747459348862,48.39151829,168.11,168.03,304.62]
[1747459349456,48.39151829,168.11,168.03,222.52]
[1747459349647,26.0,168.07,168.01,20.86]
[1747459349848,28.91500439,168.07,168.01,20.86]
[1747459350379,26.0,168.08,168.01,20.86]
[1747459351377,26.0,168.04,168.01,20.86]
[1747459351761,26.0,168.04,167.98,43.78]
[1747459352079,26.0,168.04,167.98,21.76]
[1747459352278,26.0,168.02,167.95,4.23643682]
[1747459352979,26.0,168.02,167.94,18.64964886]
[1747459353288,26.0,168.04,167.94,18.64964886]
[1747459353480,5.95131821,168.03,167.94,18.64964886]
[1747459355961,26.0,168.0,167.94,18.64964886]
[1747459356161,26.0,168.0,167.95,22.44]
[1747459357066,5.95131821,168.03,167.96,18.64964886]
[1747459357379,26.0,168.02,167.96,100.74964886]
[1747459357685,5.95167277,168.02,167.96,82.1]
[1747459359473,5.95167277,168.02,167.97,22.4]
[1747459359883,26.0,167.99,167.97,22.4]
[1747459360281,26.0,167.99,167.94,82.1]
[1747459360588,26.0,167.99,167.97,22.38]
[1747459361091,5.95301697,167.99,167.97,22.38]
[1747459361306,5.95301697,167.99,167.94,82.1]
[1747459361494,5.95301697,167.99,167.97,22.34]
[1747459361689,26.0,168.01,167.97,22.34]
[1747459361878,7.7286,167.96,167.84,4.23643682]
[1747459362069,26.0,167.93,167.84,4.23643682]
[1747459362272,26.0,167.93,167.85,18.64964886]
[1747459363084,5.95521676,167.92,167.85,18.64964886]
[1747459363597,5.95521676,167.92,167.83,18.64964886]
[1747459364682,5.95521676,167.92,167.83,24.60795888]
[1747459365088,5.95521676,167.92,167.84,22.24]
[1747459365089,20.84325868,167.92,167.84,22.24]
[1747459365902,20.84325868,167.92,167.85,18.64964886]
[1747459366406,20.84325868,167.92,167.83,18.64964886]
[1747459366593,26.0,167.89,167.84,22.2]
[1747459367583,25.93159749,167.89,167.84,22.2]
[1747459368306,25.93159749,167.89,167.85,18.64964886]
[1747459368922,31.88791243,167.89,167.85,18.64964886]
[1747459369218,31.88791243,167.89,167.84,22.2]
[1747459369422,31.88791243,167.89,167.85,22.1]
[1747459369709,31.88791243,167.89,167.84,43.88]
[1747459370198,46.77861467,167.89,167.84,43.86]
[1747459371322,31.88791243,167.89,167.84,43.86]
[1747459375551,31.88791243,167.89,167.84,21.78]
[1747459376054,46.77861467,167.89,167.84,21.78]
[1747459378674,31.88791243,167.89,167.84,21.78]
[1747459378848,5.95631494,167.89,167.84,21.78]
[1747459379166,31.95631494,167.89,167.84,21.78]
[1747459381381,7.7286,167.96,167.85,20.29434886]
[1747459381539,26.0,167.93,167.85,20.29434886]
[1747459381733,5.95415302,167.95,167.85,237.09434886]
[1747459381939,5.95344406,167.97,167.87,18.64964886]
[1747459382242,5.95273528,167.99,167.89,18.64964886]
[1747459382573,26.0,167.96,167.91,18.64964886]
[1747459382786,22.94409676,168.04,167.91,100.74964886]
[1747459382972,20.82888838,168.04,167.92,5.95521676]
[1747459383164,26.0,168.01,167.93,18.64964886]
[1747459383347,26.0,168.01,167.95,18.64964886]
[1747459383684,20.82888838,168.04,167.96,21.84]
[1747459384170,26.0,168.01,167.96,21.84]
[1747459384350,20.82888838,168.04,167.96,21.84]
[1747459384669,26.0,168.01,167.96,21.84]
[1747459384964,20.82888838,168.04,167.96,21.84]
[1747459385466,26.0,168.01,167.97,21.74]
[1747459386168,31.95238095,168.0,167.97,21.74]
[1747459394197,26.0,168.0,167.97,21.74]
[1747459394571,26.0,168.0,167.97,103.84]
[1747459394897,5.95175139,168.02,167.97,103.84]
[1747459395292,5.95175139,168.02,167.98,18.64964886]
[1747459396112,14.87535022,168.07,167.98,18.64964886]
[1747459396317,26.0,168.06,167.98,100.74964886]
[1747459396827,5.95025586,168.06,167.98,106.70268536]
[1747459397114,31.95025586,168.06,167.98,106.70268536]
[1747459399499,46.82589551,168.06,167.99,21.48]
[1747459400920,46.82589551,168.06,167.98,100.74964886]
[1747459401097,1.5802,168.09,167.98,100.74964886]
[1747459401098,5.95167241,168.02,167.99,21.44]
[1747459401302,20.83085345,168.02,167.97,82.1]
[1747459401618,20.83085345,168.02,167.98,21.44]
[1747459401792,20.83085345,168.02,167.98,21.42]
[1747459404531,20.83085345,168.02,167.97,82.1]
[1747459404737,20.83085345,168.02,167.97,103.44]
[1747459405337,20.83085345,168.02,167.97,21.34]
[1747459406651,26.0,167.99,167.96,21.84]
[1747459406859,26.0,167.99,167.96,43.22]
[1747459407358,5.95308965,167.98,167.96,43.22]
[1747459409243,5.95308965,167.98,167.96,43.16]
[1747459409976,5.95308965,167.98,167.94,82.1]